Cogmind - Beta 16 @@@ ROGUE MODE // 2025.11.18 @ 16:43:52 // Winter2019/RPGLIKE Player: Jaegerpls Result: Destroyed by NK-W17(R) with Subdweller Laser Performance ------------- Evolutions (0) 0 Regions Visited (2) 400 Robots Destroyed (32) 160 Value Destroyed (761) 761 Prototype IDs (12) 240 Alien Tech Used (0) 0 Bonus (0) 0 TOTAL SCORE: 1561 Bonus ------- None Cogmind --------- Core Integrity 0/650 Matter 369/400 Energy 125/125 System Corruption 1% Temperature Cool (15) Movement Hovering (52) Location -10/Subcaves Parts ------- > --- POWER (1) -------- Light Ion Engine > --- PROPULSION (3) --- Improved Hover Unit Improved Hover Unit Improved Hover Unit > --- UTILITY (3) ------ Weight Redist. System Improved Terrain Scanner Tractor Beam > --- WEAPON (2) ------- Improved Light Cannon Improved Light Cannon > --- INVENTORY (1) ---- Improved Hover Unit Peak State ------------ > --- POWER ------------ Light Ion Engine > --- PROPULSION ------- Improved Hover Unit Improved Hover Unit Improved Hover Unit > --- UTILITY ---------- Weight Redist. System Improved Terrain Scanner Tractor Beam > --- WEAPON ----------- Improved Light Cannon Improved Light Cannon > --- INVENTORY -------- (None) [Rating: 17] Favorites ----------- Power Light Ion Engine Engine Light Ion Engine Propulsion Improved Hover Unit Treads Light Treads Wheel Wheel Hover Unit Improved Hover Unit Utility Improved Terrain Scanner Device Improved Terrain Scanner Processor Visual Processing Unit Weapon Improved Light Cannon Energy Gun EM Pulse Gun Energy Cannon Beam Cannon Ballistic Cannon Improved Light Cannon Build | -11 -10 -10 ------- Run | Yrd Mat Sub Slots Evolved 5 | 4 1 . Power . | . . . Propulsion 2 | 1 1 . Utility 2 | 2 . . Weapon 1 | 1 . . Parts Attached 19 | 5 13 1 Power 1 | 1 . . Engine 1 | 1 . . Core . | . . . Reactor . | . . . Propulsion 6 | 1 4 1 Treads 1 | . 1 . Leg . | . . . Wheel 1 | 1 . . Hover 4 | . 3 1 Flight . | . . . Utility 6 | 1 5 . Device 4 | 1 3 . Storage . | . . . Processor 2 | . 2 . Hackware . | . . . Protection . | . . . Artifact . | . . . Weapon 6 | 2 4 . Energy Gun 2 | 2 . . Energy Cannon 1 | . 1 . Ballistic Gun . | . . . Ballistic Cannon 3 | . 3 . Launcher . | . . . Special Weapon . | . . . Impact Weapon . | . . . Slashing Weapon . | . . . Piercing Weapon . | . . . Special Melee Weapon . | . . . Unidentified Prototypes . | . . . Parts Lost . | . . . Power . | . . . Propulsion . | . . . Utility . | . . . Weapon . | . . . Highest Loss Streak . | . . . To Critical Strikes . | . . . Average Backups . | . . 1 Power . | . . . Propulsion . | . . 1 Utility . | . . . Weapon . | . . . Tool/Special . | . . . Unused Backups . | . . . Power . | . . . Propulsion . | . . . Utility . | . . . Weapon . | . . . Tool/Special . | . . . Average Slot Usage (%) 94 | . 84 100 Engine 11 | . 11 11 Treads 1 | . 2 . Hover 27 | . 17 33 Device 30 | . 26 33 Processor 2 | . 6 . Ballistic Cannon 18 | . 13 22 Peak Build Rating 17 | 7 17 17 Average Rating 14 | 3 11 17 On Entrance 8 | . 7 17 Avg Prop Armor Cover (%) . | . . . Naked Turns . | . . . Heaviest Build 13 | 8 13 13 Greatest Support 27 | 10 27 21 Greatest Overweight (x) 2 | 1 2 . Average Overweight (x) . | . . . Largest Inventory Capacity 1 | 1 1 1 Average Capacity 1 | 1 1 1 Most Carried 1 | . 1 1 Average Carried . | . . 1 Final Capacity 1 | 1 1 1 Final Carried 1 | . 1 1 Class Distribution -------------------- 89% | Mutant 10% | Scout Dominant Class ---------------- Mutant | -10/Materials Mutant | -10/Subcaves Resources | -11 -10 -10 ----------- Run | Yrd Mat Sub Matter Collected 1203 | 250 517 436 Remotely 715 | . 279 436 Salvage Created 563 | 145 248 170 Parts 53 | 8 32 13 Haulers Intercepted 2 | . 2 . Recyclers Shooed . | . . . Parts Field Recycled . | . . . Retrieved Matter . | . . . Parts Self-Destructed 1 | . . 1 Prevented . | . . . Parts Restored . | . . . Kills | -11 -10 -10 ------- Run | Yrd Mat Sub Combat Hostiles Destroyed 21 | . 12 9 Cannons 21 | . 12 9 Classes Destroyed 9 | 2 6 1 Builder 1 | . 1 . Tunneler 3 | 3 . . Hauler 2 | . 2 . Recycler 1 | 1 . . Operator 1 | . 1 . Watcher 3 | . 3 . Swarmer 6 | . 6 . Grunt 8 | . 6 2 Subdweller 7 | . . 7 Best Kill Streak 6 | 4 6 2 Combat Bots Only 5 | . 5 2 Max Kills in Single Turn 1 | 1 1 1 Gunslinging . | . . . Exploded . | . . . Melee . | . . . Uniques/NPCs Destroyed . | . . . Combat | -11 -10 -10 -------- Run | Yrd Mat Sub Hostile Shots Fired 140 | . 65 75 Missed 43 | . 16 27 Hits 97 | . 49 48 Projectile 97 | . 49 48 Critical Strikes 1 | . . 1 Damage Taken 1395 | . 501 894 Core 1161 | . 427 734 Absorbed by Shields . | . . . Redirected to Core 786 | . 229 557 Core Remaining (%) 100 | 100 . . Volleys Fired 131 | 11 63 57 Largest 2 | 2 2 2 Hottest 90 | 80 90 66 Shots Fired 198 | 22 67 109 Gun 22 | 22 . . Cannon 176 | . 67 109 Launcher . | . . . Special . | . . . Kinetic 175 | . 66 109 Thermal 1 | . 1 . Explosive . | . . . Electromagnetic 22 | 22 . . Robot Hit Streak 23 | 3 8 23 Robot Miss Streak 7 | 3 7 2 Penetration Max . | . . . Secondary Targets . | . . . Shots Hit Robots 114 | 12 37 65 Core Hits 43 | 5 21 17 Critical Kills . | . . . Critical Parts Destroyed . | . . . Critical Strikes 1 | . . 1 Blast 1 | . . 1 Melee Attacks . | . . . Impact . | . . . Slashing . | . . . Piercing . | . . . Sneak Attacks . | . . . Combat Hostiles . | . . . Follow-up Attacks . | . . . Damage Inflicted 2135 | 155 670 1310 Guns 155 | 155 . . Cannons 1980 | . 670 1310 Explosions . | . . . Melee . | . . . Ramming . | . . . Kinetic 1961 | . 651 1310 Thermal 19 | . 19 . Explosive . | . . . Electromagnetic 155 | 155 . . Impact . | . . . Slashing . | . . . Piercing . | . . . Highest Corruption 1 | . 1 1 Average Corruption 1 | . 1 1 Corruption Purged . | . . . Corruption Blocked . | . . . Effects 26 | . 7 19 Message Errors 9 | . 4 5 Matter Fused 2 | . 1 1 Heat Flow Errors 6 | . 1 5 Energy Discharges 4 | . . 4 Parts Rejected 1 | . 1 . Data Loss (minor) 3 | . . 3 Data Loss (major) 1 | . . 1 Overload Shots . | . . . Overflow Damage 28 | . 6 22 Projectiles 28 | . 6 22 Explosions . | . . . Melee . | . . . Knockbacks 14 | . 4 10 Impact . | . . . Kinetic 12 | . 4 8 Secondary 2 | . . 2 Self-Inflicted Damage . | . . . Shots . | . . . Rammed . | . . . Targets Rammed . | . . . Kicked . | . . . Crushed . | . . . Highest Temperature 290 | . 208 290 Average Temperature 107 | . 72 123 Received Heat Transfer 417 | . 132 285 Effects 3 | . . 3 Interference 3 | . . 3 Siege Activations . | . . . Martial Activations . | . . . Shielding Activations . | . . . Robots Disrupted . | . . . Combat Hostiles . | . . . Robots Corrupted . | . . . Combat Hostiles . | . . . Parts Fried 1 | 1 . . Impact Corruptions . | . . . Robots Melted . | . . . Combat Hostiles . | . . . Parts Melted . | . . . Heat Transferred 37 | . 37 . Parts Sabotaged . | . . . Parts Stolen . | . . . Parts Stripped . | . . . Power Chain Reactions . | . . . Alert | -11 -10 -10 ------- Run | Yrd Mat Sub Maximum Alert Level . | . . . Low Security (%) 100 | 100 100 . Level 1 . | . . . Level 2 . | . . . Level 3 . | . . . Level 4 . | . . . Level 5 . | . . . High Security . | . . . Max Security . | . . . Peak Influence 120 | 10 120 . Initial 3 | . 3 . Average 33 | 1 35 . Influence Increases 499 | 20 429 50 Destroy 0b10 Robot/C 280 | . 240 40 Destroy 0b10 Robot/NC 55 | 20 35 . Destroy Leader 80 | . 70 10 Successful Hack 22 | . 22 . Disable Machine 15 | . 15 . Destroy Structure 2 | . 2 . Partial Spotted 15 | . 15 . Lose Combat Pursuer 30 | . 30 . Influence Decreases 465 | 15 434 16 Entered New Map 2 | . 2 . Time Decay 416 | 15 385 16 Lost Ally 10 | . 10 . Purge Threat 37 | . 37 . Squads Dispatched 2 | . 2 . Investigation 1 | . 1 . Extermination . | . . . Reinforcement 1 | . 1 . Assault . | . . . Garrison . | . . . Intercept . | . . . Searches Triggered . | . . . Construction Impeded . | . . . Haulers Reinforced . | . . . Active Scanning Responses . | . . . Cargo Convoy Interrupts . | . . . Stealth | -11 -10 -10 --------- Run | Yrd Mat Sub Distress Signals 2 | . 2 . Communications Jammed . | . . . Distress Signals . | . . . Times Spotted 37 | . 25 12 Peak Tracking Total 6 | . 6 2 Tactical Retreats 2 | . 2 . Traps | -11 -10 -10 ------- Run | Yrd Mat Sub Traps Triggered 3 | . 3 . Indirectly . | . . . Trap Hack Attempts . | . . . Triggered . | . . . Disarmed . | . . . Reprogrammed . | . . . Reused . | . . . Traps Extracted . | . . . Installed . | . . . Triggered . | . . . Machines | -11 -10 -10 ---------- Run | Yrd Mat Sub Machines Disabled 1 | . 1 . Max in Single Turn 1 | . 1 . Machines Repaired . | . . . Machines Dismantled . | . . . Machines Sabotaged . | . . . Overloaded Fab Kills . | . . . Hacking | -11 -10 -10 --------- Run | Yrd Mat Sub Machines Accessed 10 | . 8 2 Terminals 6 | . 6 . Fabricators . | . . . Repair Stations . | . . . Recycling Units 2 | . 2 . Scanalyzers . | . . . Garrison Access . | . . . Total Hacks 43 | . 30 13 Successful 32 | . 19 13 Failed 11 | . 11 . Catastrophic . | . . . Database Lockouts . | . . . Manual 26 | . 26 . Terminals 26 | . 26 . Fabricators . | . . . Repair Stations . | . . . Recycling Units 4 | . 4 . Scanalyzers . | . . . Garrison Access . | . . . Terminal Hacks 19 | . 6 13 Record 12 | . . 12 Robot Analysis 5 | . 5 . Unreport Threat 1 | . 1 . Proto ID Catalog 1 | . . 1 Fabricator Hacks . | . . . Repair Station Hacks . | . . . Recycling Unit Hacks 4 | . 4 . Report Inventory 2 | . 2 . Retrieve Components 2 | . 2 . Scanalyzer . | . . . Garrison Access Hacks . | . . . Unauthorized Hacks 9 | . 9 . Terminals 9 | . 9 . Assimilate 1 | . 1 . Botnet 2 | . 2 . Operators 1 | . 1 . Skim 5 | . 5 . Fabricators . | . . . Repair Stations . | . . . Recycling Units . | . . . Scanalyzers . | . . . Garrison Access . | . . . Data Cores Recovered 1 | . 1 . Used . | . . . Hacking Detections 7 | . 7 . Full Trace Events 1 | . 1 . Feedback Events . | . . . Feedback Blocked . | . . . Robot Schematics Acquired . | . . . Robots Built . | . . . Authchips . | . . . Time . | . . . Total Robot Build Rating . | . . . Part Schematics Acquired . | . . . Parts Built . | . . . Authchips . | . . . Time . | . . . Total Part Build Rating . | . . . Part Studies Acquired . | . . . Parts Repaired . | . . . Time . | . . . Parts Recycled . | . . . Recycled Matter . | . . . Retrieved Matter . | . . . Retrieved Components 12 | . 12 . Parts Scanalyzed . | . . . Part Schematics Acquired . | . . . Parts Damaged . | . . . Bothacking | -11 -10 -10 ------------ Run | Yrd Mat Sub Used RIF Installer . | . . . Robots Hacked . | . . . Non-combat . | . . . Combat . | . . . Robot Hacks Applied . | . . . Relay Couplers Released . | . . . Fabnet Peak Effective % . | . . . Robots Rewired . | . . . Allies Hacked . | . . . Hacks Repelled . | . . . Allies | -11 -10 -10 -------- Run | Yrd Mat Sub Total Allies 1 | . 1 . Largest Group 1 | . 1 . Highest-Rated Group 10 | . 10 . Highest-Rated Ally 10 | . 10 . Total Orders . | . . . Ally Attacks . | . . . Total Damage . | . . . Kills . | . . . Allies Corrupted . | . . . Allies Melted . | . . . Intel | -11 -10 -10 ------- Run | Yrd Mat Sub Active Infowar (turns) 3382 | 3 1212 2167 Optics 403 | . 403 . Sensors 512 | . 512 . Terrain 3380 | 3 1210 2167 Robot Analysis Total 5 | . 5 . Derelict Logs Recovered 1 | . . 1 Drone Launches . | . . . Drone Recoveries . | . . . Exploration | -11 -10 -10 ------------- Run | Yrd Mat Sub Turns Passed 3460 | 69 1212 2179 Spaces Moved 1832 | 37 819 976 Core 5 | 4 1 . Treads 137 | . 137 . Legs . | . . . Wheels 81 | 33 48 . Hover 1609 | . 633 976 Flight . | . . . Fastest Speed 50 | 50 52 52 Average Speed 62 | 78 73 52 Slowest Speed 160 | 100 160 52 Overloaded Moves . | . . . Propulsion Burnouts . | . . . Robots Hopped . | . . . Potential Cave-ins . | . . . Cave-ins Triggered . | . . . Exploration Rate (%) 53 | 4 95 61 Regions Visited 2 Branch Regions 1 Pre-discovered Areas 2 | . 1 1 Known Exits Taken 1 | . 1 . Unknown Exits Taken 1 | 1 . . Scrap Searched 2 | . . 2 Spaces Dug . | . . . Terrain Destroyed 1 | . 1 . Melee . | . . . Projectile 1 | . 1 . AOE . | . . . Terrain Rammed . | . . . Walls Destroyed . | . . . Machines Disabled . | . . . Actions | -11 -10 -10 --------- Run | Yrd Mat Sub Total 3947 | 52 1357 2538 Wait 1925 | . 427 1498 Move 1830 | 36 818 976 Hop . | . . . Pick Up 2 | . 2 . Fast Attach 19 | 5 14 . Attach 1 | . 1 . Detach 3 | . 3 . Swap 2 | . 1 1 Drop 7 | . 7 . Fire 131 | 11 63 57 Melee . | . . . Ram . | . . . Kick . | . . . Crush . | . . . Escape Stasis . | . . . Rewire . | . . . Trap . | . . . Miscellaneous 27 | . 21 6 Route ------- -11/Scrapyard -10/Materials (discovered 6 exits: *Mat x3 / *Min x2 / *Sub) -10/Subcaves (discovered 3 exits: *Mat x2 / Rec) History --------- Turn | Location | Event 1 | -11/Scrapyard | Upgraded with Propulsion slot (x1) 1 | -11/Scrapyard | Upgraded with Utility slot (x2) 1 | -11/Scrapyard | Upgraded with Weapon slot (x1) 2 | -11/Scrapyard | Met Revision 17 18 | -11/Scrapyard | Discovered new exit (range 15) 70 | -11/Scrapyard | Entered Materials 234 | -10/Materials | Discovered new exit (range 14) 314 | -10/Materials | Build established: Mutant 520 | -10/Materials | Discovered new exit (range 13) 584 | -10/Materials | Discovered new exit (range 12) 702 | -10/Materials | Discovered new exit (range 14) 804 | -10/Materials | Build established: Scout 872 | -10/Materials | Discovered new exit (range 11) 932 | -10/Materials | Identified exit to Materials 932 | -10/Materials | Identified exit to Subcaves 932 | -10/Materials | Identified exit to Mines 1022 | -10/Materials | Reached level 2 1026 | -10/Materials | Upgraded with Propulsion slot (x1) 1035 | -10/Materials | Learned Storage garrison access intel 1096 | -10/Materials | Learned location of Storage (-9) 1165 | -10/Materials | Build established: Mutant 1282 | -10/Materials | Entered Subcaves 1283 | -10/Subcaves | Identified exit to Recycling 1507 | -10/Subcaves | Visited Clippyterm 1509 | -10/Subcaves | Identified exit to Materials 1900 | -10/Subcaves | Core integrity fell below 50% 2028 | -10/Subcaves | Ambushed by Subdwellers from Twisted Machinery 2434 | -10/Subcaves | Visited 4L-MR0's lab 2734 | -10/Subcaves | A swath of the cavern ceiling suddenly collapsed 3156 | -10/Subcaves | Learned location of Zion (-6) 3207 | -10/Subcaves | Shifting Twisted Machinery released Flamer 3300 | -10/Subcaves | Core integrity fell below 20% 3461 | -10/Subcaves | Destroyed by NK-W17(R) with Subdweller Laser Last Messages --------------- 03284_ Destroyed Aluminum Leg. 03285_ Overheating: System interference. 03285_ Imp. Terrain Scanner temporarily disabled. 03285_ Imp. Light Cannon temporarily disabled. 03285_ Imp. Terrain Scanner temporarily disabled. 03287_ Destroyed Imp. Heat Sink. 03288_ Acquired 1 matter. 03290_ Acquired 3 matter. 03296_ Acquired 4 matter. 03297_ Destroyed Aluminum Leg. 03300_ G-47 Trooper destroyed. 03303_ G-34 Mercenary destroyed. 03304_ Acquired 53 matter. 03304_ Acquired 1 matter. 03304_ Acquired 17 matter. 03311_ Ion Engine fries itself beyond repair. 03342_ System corrupted: Heat flow error (+148). 03404_ System corrupted: Component data lost. 03429_ Upgraded: Core Integrity (+50) 03457_ Acquired 1 matter. Map ----- +----------------------------------------------------+ | ?????????????????????????????????????????????????? | | ?????????????????????????????????????????????????? | | ??????????????????????? ?????????????????????? | | ??????????????????????? ???????????????????? | | ??????????????????????? ???????????????????? | | ??????????????????????? ??????????????????? | | ??????????????? ??? ?? ???????????????????? | | ???????????????????????# ??? ???????????????? | | ???????????????????##?## ??? ???????????????? | | ?????????????###?### ## #???????????????????? | | ?????????????#??### ###?##???????????????? | | ???????????##?#### ########?????????????? | | ???????????##?### ##?????????????? | | ?????????#?????## #### ?????????? | | ?????????##?#####" ?????????? | | ?????????#???####" ?#?#????? | | ?????????###?#### % #??#??? | | ??????#??###?#### ?### #### #?#? | | ??????????##??### #### ### #### ??? ###?? | | ???????#??####?####?#### #### ### ###? | | ?????###??############## #### ## ##?? | | ????????#?########## # ## ## ? ?? | | ???????##?######### ## ## ## ? ?? | | ???????##?######## # ## ### ??## | | ?????????##?##""" #R## ### ##### | | ?????#??######"""" R @ ## ? #####? | | ?????#???##### #####" ### ?####### | | ?????###??############ # #####?####### | | ?????#???################### ####?## ### | | ????????#################### ###### # | | ##?#?#?################ #### % | | ####?################# ## < ### | | ###?###?############## ## # # | | #####??################# ## ## | | ##?##?##?############### ## ## % ### | | ##?##################### ## #### # #### | | ####################### ######## ##### | | #####?########?#?#### ######?###### | | #################### ############ | | #################### ## ############# < | | ###################### ### ############### % | | ########################### ################ ## | | #############?############################### | | ########################################?## | | ##################################### ##### | | ################################### ##### | | ###############?####?############# #### | | & ################################## #?## % | | ##########?###################### #### | | ################################# # | +----------------------------------------------------+ Best States ------------- Heat Dissipation 31 Energy Generation 10 Energy Capacity 125 Matter Stores 400 Matter Capacity 400 Sight Range 18 Robot Scan Range 18 Terrain Scan Range 16 Terrain Scan Density 310 Additional Mass Support 6 Evasion (%) 54 Recoil Reduction 1 Item Schematics ----------------- None Robot Schematics ------------------ None Fabricated ------------ Nothing Repaired ---------- Nothing Studied --------- None Alien Tech Used ----------------- None Achievements -------------- None Challenges ------------ None RPGLIKE | -11 -10 -10 --------- Run | Yrd Mat Sub Levels Raised 1 | . 1 . XP Earned 5825 | 3000 1575 1250 XP Spent 4470 | 2995 1450 25 Upgrades 17 | 11 5 1 Propulsion Slot 2 | 1 1 . Utility Slot 2 | 2 . . Weapon Slot 1 | 1 . . Core Integrity 1 | . . 1 Heat Dissipation 1 | 1 . . Matter Storage 2 | . 2 . Inventory Capacity 1 | 1 . . Sensor Range 4 | 2 2 . Terrain Scan Density 3 | 3 . . Protomatter Created 193 | . 146 47 Integrity Restored 560 | . 419 141 Core 510 | . 369 141 Parts 50 | . 50 . Protomatter Decayed 50 | . 5 45 Game ------ Seed FactoryPlatingDriver Manual? 0 Play Time 00:36:53 Cumulative 83.7 hours Start 2025.11.18 @ 16:24:06 End 2025.11.18 @ 16:43:52 Sessions 1 Manual Loads 0 Difficulty Rogue Special Mode Winter2019/RPGLIKE Game No. 77 Rogue 77 Adventurer 0 Explorer 0 Win Type - Total 0 Types 0/0/0/0/0/0/0/0/0/0 Lore% 59 Gallery% 38 Achievement% 36 Wizard Run 0 Options --------- Layout 0 ASCII 0 Keyboard 0 Movement Mouse Keybinds 0 Fullscreen 2 Font 24/Smallcaps Map View 76x50 Zoom Use 0% Tactical HUD 1 Map Filters NONE Filters NONE Steam 1 RUN: 7d47c8c9-8a66-4e8f-9b71-7d01d27f27b2